bitfinex/quotes_ETHUSD_20260304
["timestamp","ask_amount","ask_price","bid_price","bid_amount"]
[1772619114790,0.002,2084.9,2084.1,0.001]
[1772619115093,1.494,2084.8,2084.1,3.25318766]
[1772619116366,1.494,2084.7,2084.2,1.199501]
[1772619116775,1.494,2084.6,2084.2,4.45168866]
[1772619117178,6.28831902,2086.3,2085.2,3.25218766]
[1772619117381,4.05436568,2086.2,2085.2,3.25218766]
[1772619117667,1.19835106,2086.2,2085.2,3.25218766]
[1772619118164,1.20032794,2086.3,2085.0,0.43647766]
[1772619118365,5.54654602,2086.2,2085.3,3.25218766]
[1772619118579,2.69137039,2086.2,2085.3,3.25218766]
[1772619119570,1.492,2086.1,2085.3,3.25218766]
[1772619119770,1.20033773,2086.3,2085.3,3.25218766]
[1772619119973,1.492,2086.0,2085.3,3.25218766]
[1772619120296,1.492,2086.0,2085.4,1.19881077]
[1772619120599,1.492,2086.0,2084.8,1.52349926]
[1772619120600,4.5119993,2085.9,2084.8,1.52349926]
[1772619120899,0.067536,2086.3,2084.8,3.25218766]
[1772619120900,1.491,2085.8,2084.8,3.25218766]
[1772619121112,1.491,2085.7,2084.8,3.25218766]
[1772619121463,1.491,2085.8,2084.8,3.25218766]
[1772619121693,1.49,2085.8,2084.8,3.25218766]
[1772619122490,2.68861915,2085.8,2084.9,1.19909827]
[1772619122876,1.49,2085.7,2085.0,3.25218766]
[1772619123281,1.489,2085.9,2085.0,3.25218766]
[1772619123877,1.20033017,2086.3,2085.0,3.25218766]
[1772619124285,1.489,2086.2,2085.2,3.25218766]
[1772619124499,0.002,2086.3,2085.4,3.25218766]
[1772619124500,1.49,2086.3,2085.4,3.25218766]
[1772619124770,0.002,2086.3,2085.4,3.25218766]
[1772619125908,0.002,2086.3,2085.6,3.25218766]
[1772619126578,0.002,2086.3,2085.8,3.25218766]
[1772619127173,0.002,2086.5,2085.9,3.25218766]
[1772619129051,0.002,2086.5,2086.0,1.19846596]
[1772619132677,3.31347589,2086.5,2085.6,1.1986471]
[1772619132881,1.19823619,2086.4,2085.3,1.19886826]
[1772619133175,4.51169288,2086.5,2085.4,3.25218766]
[1772619133376,0.002,2086.6,2085.4,3.25218766]
[1772619133377,1.482,2086.4,2085.4,3.25218766]
[1772619134598,1.481,2086.4,2085.4,3.25218766]
[1772619134816,1.20014236,2086.6,2085.6,3.25218766]
[1772619134817,1.483,2086.6,2085.6,3.25218766]
[1772619134977,0.002,2086.6,2085.9,3.40167265]
[1772619136412,0.002,2086.6,2085.9,3.25218766]
[1772619136706,0.002,2086.6,2085.7,1.19863834]
[1772619136911,0.002,2086.6,2085.6,4.79455338]
[1772619136912,1.20012875,2086.6,2085.6,4.79455338]
[1772619137296,0.002,2086.6,2085.6,4.79455338]
[1772619137496,1.479,2086.5,2085.6,4.79455338]
[1772619139292,0.002,2086.4,2085.6,4.79455338]
[1772619139494,1.48,2086.4,2085.6,4.79455338]
[1772619140188,0.002,2086.4,2085.6,4.79455338]
[1772619140507,0.002,2086.4,2085.6,8.34027807]
[1772619141817,0.002,2086.4,2085.3,4.62770931]
[1772619141818,4.82318849,2086.4,2085.3,4.62770931]
[1772619142192,3.34418849,2086.3,2085.3,1.19886826]
[1772619143582,1.19835106,2086.2,2085.1,1.19898326]
[1772619143780,3.34418849,2086.1,2085.0,1.20002431]
[1772619144211,3.34418849,2086.1,2085.0,0.001]
[1772619144400,3.34418849,2085.9,2085.0,0.001]
[1772619144612,3.34418849,2085.7,2084.8,0.001]
[1772619144783,3.34418849,2085.5,2084.8,0.001]
[1772619144988,3.34418849,2085.3,2084.8,0.001]
[1772619145303,3.34418849,2085.3,2084.5,0.001]
[1772619145622,3.34418849,2085.1,2084.5,0.001]
[1772619145987,2.67292576,2085.2,2084.3,0.001]
[1772619146190,4.54297967,2085.5,2084.3,3.42984105]
[1772619146508,4.33016667,2085.4,2084.3,3.42984105]
[1772619146705,4.54297967,2085.5,2084.3,3.42984105]
[1772619146902,4.33015296,2085.4,2084.3,3.42984105]
[1772619147086,1.473,2085.4,2084.3,3.42984105]
[1772619147716,1.19886826,2085.3,2084.4,1.19938591]
[1772619149000,4.54305675,2085.3,2084.4,1.19938591]
[1772619149444,3.34418849,2085.1,2084.3,0.001]
[1772619149602,1.19904076,2085.0,2084.3,0.001]
[1772619149798,1.471,2084.9,2084.3,3.42984105]
[1772619150027,1.19858088,2085.8,2084.5,3.42884105]
[1772619150334,4.81518849,2085.7,2084.5,3.42884105]
[1772619150539,3.34418849,2085.7,2084.5,3.42884105]
[1772619150719,1.471,2085.8,2084.8,3.42884105]
[1772619151935,2.66958172,2085.8,2084.9,4.62793932]
[1772619152136,1.471,2085.8,2084.9,4.62793932]
[1772619152733,4.5425819,2086.2,2085.0,3.42884105]
[1772619152936,1.47,2086.1,2085.0,3.42884105]
[1772619153801,1.19846596,2086.0,2085.1,1.19898326]
[1772619154315,1.469,2085.9,2085.1,1.19898326]
[1772619155329,1.469,2086.0,2085.1,1.19898326]
[1772619155638,3.34418849,2086.3,2085.1,4.62782431]
[1772619155838,1.469,2085.9,2085.1,4.62782431]
[1772619156000,1.468,2085.9,2085.2,3.42884105]
[1772619156630,4.54250369,2086.3,2085.2,3.42884105]
[1772619156927,1.468,2086.0,2085.2,3.42884105]
[1772619157628,1.468,2086.0,2085.1,1.19898326]
[1772619158121,1.19852341,2085.9,2085.0,4.79593304]
[1772619158328,1.19852341,2085.9,2085.0,1.19904076]
[1772619158636,3.34418849,2085.8,2085.0,1.19904076]
[1772619160641,3.34418849,2085.8,2084.7,1.19921331]
[1772619160642,3.34418849,2085.6,2084.7,1.19921331]
[1772619161126,1.465,2085.5,2084.7,1.19921331]
[1772619162128,1.19835106,2086.2,2084.8,3.42884105]
[1772619162332,4.32088759,2086.1,2084.8,3.42884105]
[1772619162529,0.002,2086.4,2085.2,3.42884105]
[1772619162833,4.80718849,2086.3,2085.3,1.19886826]
[1772619163638,0.002,2086.4,2085.4,3.42884105]
[1772619163827,1.463,2086.3,2085.4,3.42884105]
[1772619164140,1.463,2086.2,2085.4,3.42884105]
[1772619164299,0.002,2086.4,2085.4,3.42884105]
[1772619164300,0.002,2085.8,2085.4,3.42884105]
[1772619164638,1.462,2086.3,2085.4,3.42984105]
[1772619164807,0.002,2086.1,2085.5,4.62759434]
[1772619165618,0.002,2086.1,2085.4,1.19979688]
[1772619165804,0.002,2086.1,2085.4,1.19981023]
[1772619166433,1.461,2086.0,2085.4,1.19981023]
[1772619167003,1.19852341,2085.9,2085.4,0.001]
[1772619167248,3.34418849,2085.8,2085.4,0.001]
[1772619167457,3.34418849,2085.8,2085.0,0.001]
[1772619167623,3.34418849,2085.6,2085.0,0.001]
[1772619167799,3.34418849,2085.4,2085.0,0.001]
[1772619168006,1.461,2085.3,2085.0,0.001]
[1772619168202,4.80518849,2085.3,2084.7,0.001]
[1772619168437,6.42661708,2085.2,2084.7,0.001]
[1772619168611,3.56582213,2085.2,2084.7,0.001]
[1772619168939,1.19898326,2085.1,2084.6,0.001]
[1772619169106,1.19898326,2085.1,2084.5,0.001]
[1772619170141,1.46,2085.0,2084.5,0.001]
[1772619170636,1.46,2085.1,2084.5,0.001]
[1772619171839,1.46,2085.3,2084.5,3.38652807]
[1772619172009,1.459,2085.5,2084.5,3.38652807]
[1772619172714,5.02482213,2085.5,2084.5,0.001]
[1772619173310,1.19881077,2085.4,2084.5,0.001]
[1772619173845,1.459,2085.3,2084.5,0.001]
[1772619174144,1.459,2085.2,2084.5,0.001]
[1772619175024,2.86148678,2085.1,2084.3,0.001]
[1772619175338,5.02382213,2085.0,2084.3,0.001]
[1772619175546,1.458,2084.9,2084.3,0.001]
[1772619175912,4.76473551,2085.3,2084.3,0.001]
[1772619176138,1.458,2084.9,2084.3,0.001]
[1772619177207,4.76473551,2085.3,2084.3,0.001]
[1772619177545,4.76447278,2085.7,2084.5,3.38552807]
[1772619177712,3.56582213,2085.7,2084.5,3.38552807]
[1772619177915,1.1986466,2085.7,2084.5,3.38552807]
[1772619178121,1.458,2085.6,2084.5,3.38552807]
[1772619178315,5.02382213,2085.6,2084.5,3.38552807]
[1772619178643,1.459,2085.5,2084.7,3.38652807]
[1772619178846,0.004,2085.8,2084.7,3.38652807]
[1772619179218,1.459,2085.7,2084.7,3.38652807]
[1772619179422,1.459,2085.7,2084.9,3.38552807]
[1772619179845,0.004,2085.8,2084.9,3.38552807]
[1772619180545,1.20258584,2085.8,2084.8,1.19915579]
[1772619180715,1.20258584,2085.8,2084.7,4.79762317]
[1772619180716,3.56582213,2085.6,2084.7,0.001]
[1772619180920,3.56582213,2085.4,2084.5,0.001]
[1772619181131,4.31903578,2085.5,2084.5,0.001]
[1772619181132,3.56582213,2085.2,2084.5,0.001]
[1772619181345,6.42585791,2085.1,2084.5,1.20032417]
[1772619181657,2.28842002,2085.4,2084.5,0.001]
[1772619181658,1.459,2085.0,2084.5,0.001]
[1772619182146,5.02482213,2085.0,2084.5,0.001]
[1772619182535,1.459,2084.9,2084.5,0.001]
[1772619183339,3.48727197,2085.4,2084.3,0.001]
[1772619183560,3.48727197,2085.4,2084.3,3.38652807]
[1772619183561,1.459,2085.4,2084.3,3.38652807]
[1772619183731,2.65781195,2085.4,2084.3,3.38652807]
[1772619183930,3.56782213,2085.7,2084.4,3.38552807]
[1772619183931,4.76646307,2085.7,2084.4,3.38552807]
[1772619184135,1.459,2085.6,2084.7,3.38552807]
[1772619184331,0.002,2085.7,2084.7,3.38552807]
[1772619184552,1.461,2085.7,2084.7,3.38552807]
[1772619184757,0.002,2085.7,2084.9,3.38552807]
[1772619185051,0.002,2085.7,2085.0,3.53501306]
[1772619185355,0.002,2085.8,2085.0,3.53501306]
[1772619185764,0.002,2085.8,2085.2,3.38552807]
[1772619187738,0.002,2085.8,2085.3,1.19886826]
[1772619189740,0.002,2086.0,2085.3,3.53501306]
[1772619190346,0.002,2086.0,2085.3,3.38552807]
[1772619190658,0.002,2086.0,2085.1,4.79556791]
[1772619191252,0.002,2086.0,2085.1,8.18109598]
[1772619192565,0.002,2085.6,2085.1,8.18109598]
[1772619192765,0.002,2085.6,2085.1,4.79556791]
[1772619193478,0.002,2085.6,2084.8,4.79660023]
[1772619194979,0.002,2085.6,2084.8,8.1821283]
[1772619196082,0.002,2085.6,2084.7,0.001]
[1772619196624,0.002,2085.6,2084.7,3.38652807]
[1772619196899,0.002,2086.0,2085.2,3.53501306]
[1772619197459,0.002,2086.3,2085.5,3.38552807]
[1772619198067,0.002,2086.3,2085.7,3.38552807]
[1772619198642,0.002,2086.3,2085.5,1.19871026]
[1772619198643,3.16094657,2086.3,2085.5,1.19871026]
[1772619199555,0.002,2086.3,2085.5,1.19871026]
[1772619200385,0.002,2086.3,2085.4,7.97966854]
[1772619201169,0.002,2086.3,2085.5,3.18452633]
[1772619201544,0.002,2086.4,2085.6,3.33401132]
[1772619202075,0.002,2086.4,2084.8,1.19915579]
[1772619202076,3.26474175,2086.3,2084.8,1.19915579]
[1772619202249,3.26474175,2086.1,2084.7,8.04557955]
[1772619202767,3.26474175,2086.1,2084.8,3.24789702]
[1772619202948,1.451,2086.0,2084.8,3.24789702]
[1772619203148,1.451,2086.0,2084.9,0.14948499]
[1772619203349,1.451,2086.0,2084.8,3.24789702]
[1772619203350,3.26474175,2086.1,2084.8,3.24789702]
[1772619203556,1.19833762,2086.3,2085.0,3.24789702]
[1772619203750,2.64833762,2086.3,2085.0,3.24789702]
[1772619204182,2.64833762,2086.3,2085.1,1.19898326]
[1772619204883,2.64833762,2086.3,2085.1,4.44688028]
[1772619205281,0.002,2086.1,2085.2,3.24789702]
[1772619205695,0.002,2086.1,2085.3,3.39738201]
[1772619205897,0.002,2086.4,2085.8,3.24789702]
[1772619206272,0.002,2086.4,2085.9,1.19852341]
[1772619206578,0.002,2086.8,2086.0,0.001]
[1772619207097,0.002,2086.8,2086.0,3.24889702]
[1772619207295,0.002,2086.8,2086.1,0.14948499]
[1772619208296,0.002,2086.8,2086.2,1.19835106]
[1772619209279,0.002,2086.8,2086.2,4.44624808]
[1772619209797,0.002,2086.8,2086.3,0.14948499]
[1772619210178,0.002,2086.8,2086.2,4.44624808]
[1772619210503,0.002,2086.8,2086.2,1.19835106]
[1772619210692,0.002,2086.8,2086.2,4.44624808]
[1772619211769,0.002,2086.8,2086.2,1.19835106]
[1772619212390,0.002,2086.8,2086.0,0.001]
[1772619212391,4.46280567,2086.7,2086.0,0.001]
[1772619212700,1.2000077,2086.8,2086.0,0.001]
[1772619213100,0.002,2086.8,2086.0,0.001]
[1772619213474,3.26474175,2086.7,2086.0,0.001]
[1772619214087,3.26474175,2086.5,2085.6,0.001]
[1772619214487,4.46297794,2086.4,2085.6,0.001]
[1772619215426,1.445,2086.3,2085.6,0.001]
[1772619215705,4.70874175,2086.4,2085.6,0.001]
[1772619216502,5.90700203,2086.4,2085.6,0.001]
[1772619216712,3.26474175,2086.3,2085.6,0.001]
[1772619217388,3.26474175,2086.3,2085.8,0.001]
[1772619218885,3.26474175,2086.1,2085.6,0.001]
[1772619219113,3.26474175,2086.1,2085.5,0.001]
[1772619219317,1.19835106,2086.2,2085.3,0.001]
[1772619219318,3.26474175,2085.9,2085.3,0.001]
[1772619219508,3.26474175,2085.7,2084.9,0.001]
[1772619219709,3.26474175,2085.7,2084.9,1.2000963]
[1772619220221,3.26474175,2085.7,2084.9,1.20009207]
[1772619220422,1.442,2086.0,2084.9,1.20009207]
[1772619220723,4.70674175,2086.0,2084.9,1.20009207]
[1772619221025,4.46326516,2085.9,2084.9,1.20009207]
[1772619221216,1.442,2085.8,2084.9,1.20009207]
[1772619221594,1.1985102,2086.0,2084.9,4.44798909]
[1772619221815,1.442,2085.9,2085.0,3.24789702]
[1772619222022,1.1985102,2086.0,2085.0,3.24789702]
[1772619222197,1.441,2085.9,2085.0,3.24789702]
[1772619222402,1.441,2085.9,2084.9,1.20009207]
[1772619222610,5.55316177,2086.4,2085.0,3.39738201]
[1772619222829,12.35626295,2086.3,2085.0,3.39738201]
[1772619223118,1.19840851,2086.1,2085.1,1.19898326]
[1772619223292,1.19839661,2086.2,2085.1,1.19898326]
[1772619223721,3.26474175,2086.1,2085.1,1.19898326]
[1772619224015,4.70574175,2086.1,2085.1,4.44688028]
[1772619225300,1.19846596,2086.0,2085.1,4.44688028]
[1772619225696,1.19846596,2086.0,2085.1,1.19898326]
[1772619225898,1.19846596,2086.0,2085.0,1.19900146]
[1772619225899,3.26474175,2085.9,2085.0,1.19900146]
[1772619227414,1.44,2085.9,2085.0,3.24789702]
[1772619228916,1.44,2085.9,2084.9,0.001]
[1772619228917,3.08625642,2085.8,2084.9,0.001]
[1772619229114,3.08625642,2085.7,2084.9,0.001]
[1772619229633,1.19869581,2085.6,2084.9,0.001]
[1772619230218,3.08625642,2085.5,2084.9,0.001]
[1772619230632,1.438,2085.4,2085.2,0.001]
[1772619230812,1.438,2085.4,2085.0,0.001]
[1772619231647,3.08625642,2085.2,2084.7,0.001]
[1772619231851,3.08625642,2085.2,2084.6,0.001]
[1772619232418,3.08625642,2085.2,2084.5,0.001]
[1772619232622,3.08625642,2085.2,2084.3,1.20041433]
[1772619232854,1.437,2085.2,2084.4,3.38439983]
[1772619233034,1.437,2085.3,2084.4,3.38439983]
[1772619233643,1.437,2085.3,2084.5,1.19932837]
[1772619233644,2.6358969,2085.3,2084.5,1.19932837]
[1772619234844,3.08625642,2085.2,2084.3,0.001]
[1772619235656,3.08625642,2085.0,2084.3,0.001]
[1772619236021,3.08625642,2085.0,2084.2,0.001]
[1772619236222,3.08625642,2084.8,2084.2,0.001]
[1772619236860,1.436,2084.7,2084.2,0.001]
[1772619237066,1.436,2084.7,2084.1,0.001]
[1772619237251,0.001,2084.6,2084.1,0.001]
[1772619237726,0.001,2084.6,2084.1,3.38539983]
[1772619238148,2.63504378,2085.0,2084.1,3.38539983]
[1772619238457,3.08625642,2084.9,2084.1,0.001]
[1772619239033,1.435,2084.8,2084.1,0.001]
[1772619239252,1.435,2084.7,2084.1,0.001]
[1772619239770,1.19927084,2084.6,2084.1,0.001]
[1772619240064,4.28552726,2084.6,2084.0,1e-08]
[1772619240264,3.08625642,2084.5,2084.0,1e-08]
[1772619241543,3.08625642,2084.5,2083.9,1e-08]
[1772619241786,3.08625642,2084.3,2083.9,1e-08]
[1772619242600,1.433,2084.2,2083.9,1e-08]
[1772619242808,3.08625642,2084.1,2082.8,3.38439983]
[1772619242981,6.33739831,2084.0,2082.8,4.58467188]
[1772619243294,0.71928599,2083.9,2083.8,0.001]
[1772619243662,1.91895967,2083.9,2083.1,1.20013441]
[1772619243866,0.001,2083.5,2082.7,1.20036491]
[1772619244102,2.15340406,2083.4,2082.7,1.20036491]
[1772619244274,0.72040406,2083.3,2082.7,1.20036491]
[1772619244483,0.72040406,2083.3,2082.8,3.38439983]
[1772619245212,0.001,2083.5,2082.9,3.38439983]
[1772619245618,0.20807268,2083.4,2083.0,1.20019203]
[1772619246193,0.001,2083.5,2083.0,1.20019203]
[1772619246404,0.12497816,2083.4,2083.0,1.20019203]
[1772619246618,0.01050492,2083.4,2083.1,3.38439983]
[1772619246819,0.00840394,2083.8,2083.0,1.20019203]
[1772619247046,0.00840394,2083.8,2082.8,4.80076812]
[1772619247047,4.29439162,2083.8,2082.8,4.8009986]
[1772619247258,0.33353057,2083.7,2082.8,4.8009986]
[1772619247532,0.33353057,2083.7,2082.9,3.38439983]
[1772619247733,0.33353057,2083.7,2083.1,3.38439983]
[1772619247895,1.53332126,2083.7,2083.1,3.38439983]
[1772619248099,0.16310494,2083.6,2083.0,1.20019203]
[1772619248324,0.16310494,2083.6,2083.0,4.58459186]
[1772619248633,0.16310494,2083.6,2083.0,1.20019203]
[1772619249049,0.16310494,2083.6,2082.7,4.58571907]
[1772619249731,1.36299661,2083.6,2082.7,4.58571907]
[1772619249936,0.001,2083.9,2083.0,3.38439983]
[1772619250146,0.33952753,2083.8,2083.2,3.38439983]
[1772619250501,0.001,2083.9,2083.2,3.38439983]
[1772619250805,0.001,2083.9,2083.3,3.38439983]
[1772619251509,0.0529,2084.2,2083.5,3.38439983]
[1772619251708,0.0529,2084.2,2083.6,4.58424624]
[1772619252941,2.62725153,2084.7,2083.7,3.38439983]
[1772619253138,0.07632182,2084.6,2083.7,3.38439983]
[1772619253721,2.70363701,2084.6,2083.8,1.19973126]
[1772619253949,0.07632239,2084.5,2083.8,1.19973126]
[1772619254709,3.16257881,2084.5,2083.3,4.58437442]
[1772619255017,3.43301362,2084.4,2083.3,4.58437442]
[1772619255328,3.43183416,2084.3,2083.5,0.001]
[1772619255526,0.32682783,2084.2,2083.5,0.001]
[1772619255723,1.19955856,2084.1,2083.5,0.001]
[1772619255918,1.25395856,2084.1,2083.5,0.001]
[1772619256219,0.32734247,2084.0,2083.5,0.001]
[1772619256419,1.75434247,2084.0,2083.5,0.001]
[1772619256605,0.32493344,2083.9,2083.5,0.001]
[1772619257735,1.19973126,2083.8,2083.5,0.001]
[1772619257934,1.19973126,2083.8,2083.3,0.001]
[1772619258136,4.28598768,2083.8,2083.3,0.001]
[1772619258726,4.28598768,2083.8,2083.1,0.002]
[1772619258727,3.25915472,2083.7,2083.1,0.002]
[1772619258930,1.426,2083.6,2083.1,0.002]
[1772619259130,1.426,2083.7,2083.1,0.002]
[1772619260141,2.62580395,2083.7,2083.1,0.002]
[1772619261556,1.425,2083.6,2083.1,0.002]
[1772619261779,1.425,2083.6,2083.2,0.002]
[1772619261919,1.19977117,2083.8,2083.2,0.002]
[1772619262121,3.08318803,2084.1,2083.2,0.002]
[1772619262122,1.19984641,2083.6,2083.2,0.002]
[1772619262321,1.2649464,2083.6,2083.2,0.002]
[1772619262934,0.06509999,2083.6,2083.2,0.002]
[1772619263559,1.425,2083.9,2083.2,3.08064184]
[1772619263735,0.1095,2083.9,2083.2,3.08064184]
[1772619264242,0.1095,2083.9,2083.4,3.07864184]
[1772619264552,0.0544,2084.4,2083.6,3.07864184]
[1772619265739,0.0544,2084.4,2083.7,0.14948499]
[1772619265925,0.002,2084.7,2084.0,3.07864184]
[1772619266453,0.002,2084.7,2084.2,3.07864184]
[1772619266951,1.425,2085.3,2084.3,3.07864184]
[1772619267719,1.19871713,2085.6,2084.5,3.07864184]
[1772619267951,2.62567892,2085.7,2084.7,3.07864184]
[1772619268165,1.427,2085.7,2084.7,3.07864184]
[1772619268341,2.62563988,2085.7,2084.8,4.27779763]
[1772619269060,1.20063988,2085.7,2084.8,4.27779763]
[1772619269257,2.62563988,2085.7,2084.8,4.27779763]
[1772619269657,2.62463988,2085.7,2084.8,4.27779763]
[1772619271563,3.08318803,2085.6,2084.4,4.79738914]
[1772619271933,3.08318803,2085.6,2083.9,3.07864184]
[1772619272138,3.08318803,2085.4,2083.7,1.19978883]
[1772619272356,3.08318803,2085.2,2083.7,1.19978883]
[1772619272659,3.08318803,2085.0,2083.7,1.19978883]
[1772619273158,3.08318803,2084.8,2083.7,1.19978883]
[1772619273462,1.19909827,2084.9,2083.8,3.07864184]
[1772619273769,1.424,2084.8,2083.8,3.07864184]
[1772619274362,4.50718803,2084.8,2083.7,1.19978883]
[1772619275162,1.425,2084.9,2084.0,3.07864184]
[1772619275959,1.426,2085.0,2084.0,3.07864184]
[1772619276328,1.19898326,2085.1,2084.0,3.07864184]
[1772619276533,1.426,2085.0,2084.0,3.07864184]
[1772619277559,1.19909827,2084.9,2084.1,1.19955856]
[1772619279317,4.2802863,2084.9,2083.8,7.87748885]
[1772619279441,1.19709827,2084.9,2083.9,3.07864184]
[1772619280267,4.79639311,2085.0,2084.1,0.001]
[1772619281871,3.08318803,2084.9,2084.1,0.001]
[1772619282454,1.19915579,2084.8,2084.1,0.001]
[1772619282865,1.19904076,2085.0,2084.1,3.07964184]
[1772619284472,1.19904076,2085.0,2084.2,1.199501]
[1772619285196,1.19904076,2085.0,2084.1,4.27915904]
[1772619285483,3.08318803,2084.9,2084.1,0.001]
[1772619286685,1.19915579,2084.8,2084.1,0.001]
[1772619287361,1.428,2084.7,2084.1,3.07964184]
[1772619287562,4.79618036,2085.0,2084.1,3.07964184]
[1772619287875,1.428,2084.9,2084.1,3.07964184]
[1772619288865,1.19915579,2084.8,2084.1,4.27916162]
[1772619289791,2.29042002,2085.4,2084.2,3.09408961]
[1772619290089,2.6269024,2085.3,2084.2,3.09408961]
[1772619290285,2.6269024,2085.3,2084.1,1.20051978]
[1772619290286,1.20084755,2085.4,2084.4,3.09408961]
[1772619290486,2.62884755,2085.4,2084.4,3.09408961]
[1772619291383,1.43,2085.4,2084.6,3.09408961]
[1772619292660,4.66148336,2085.4,2084.6,0.001]
[1772619292865,3.23348336,2085.4,2084.6,0.001]
[1772619293162,1.43,2085.4,2084.6,3.09508961]
[1772619293381,0.002,2085.4,2084.7,4.29330292]
[1772619293585,0.002,2085.4,2084.8,3.09408961]
[1772619295586,0.002,2085.4,2084.9,1.19909827]
[1772619295889,0.002,2085.4,2084.8,4.29320342]
[1772619297692,0.002,2085.4,2084.8,1.19911381]
[1772619297878,1.43,2085.4,2084.7,3.09408961]
[1772619298282,0.002,2085.4,2084.7,3.09408961]
[1772619300092,0.002,2085.4,2084.8,1.19915579]
[1772619300293,3.23148336,2085.3,2084.6,0.001]
[1772619301578,3.23148336,2085.1,2084.6,0.001]
[1772619302098,1.19904076,2085.0,2084.6,0.001]
[1772619302668,3.23148336,2084.8,2084.4,0.001]
[1772619302868,2.35084168,2085.0,2084.4,0.001]
[1772619302869,1.20004076,2085.0,2084.4,0.001]
[1772619303381,0.001,2085.0,2084.4,0.001]
[1772619303694,0.001,2085.0,2084.4,3.09508961]
[1772619304196,0.001,2085.0,2084.4,4.29443712]
[1772619304575,0.001,2085.0,2084.5,3.09408961]
[1772619304775,0.002,2084.9,2084.5,3.09408961]
[1772619305095,0.003,2085.4,2084.7,3.09408961]
[1772619305295,0.002,2085.1,2084.7,3.09408961]
[1772619305673,0.002,2085.1,2084.5,3.09408961]
[1772619305903,4.66048336,2085.0,2084.4,0.001]
[1772619306103,3.23148336,2084.9,2084.2,0.001]
[1772619306302,3.23148336,2084.7,2084.2,0.001]
[1772619306985,1.429,2084.6,2084.2,0.001]
[1772619307703,1.43,2084.7,2084.2,0.001]
[1772619309001,1.19909827,2084.9,2084.2,3.09508961]
[1772619309326,1.19908079,2085.0,2084.2,3.09508961]
[1772619309501,1.19904339,2085.0,2084.2,3.09508961]
[1772619309877,1.19904339,2085.0,2084.2,0.001]
[1772619309878,4.43052675,2085.0,2084.2,0.001]
[1772619310203,3.23148336,2084.9,2084.3,0.001]
[1772619311303,1.19915579,2084.8,2084.3,0.001]
[1772619311605,2.63115579,2084.8,2084.3,0.001]
[1772619312109,5.86263915,2084.8,2084.3,0.001]
[1772619312282,3.23148336,2084.7,2084.1,0.001]
[1772619312681,6.09703704,2084.6,2084.1,0.001]
[1772619312996,3.23148336,2084.4,2083.9,0.001]
[1772619313201,1.432,2084.3,2083.9,0.001]
[1772619313589,1.199501,2084.2,2083.9,0.001]
[1772619316707,2.63327084,2084.6,2083.9,0.001]
[1772619317017,2.86160582,2084.5,2083.9,0.001]
[1772619317421,3.23148336,2084.4,2083.9,0.001]
[1772619317796,4.43092681,2084.3,2083.9,0.001]
[1772619318495,4.43092681,2084.3,2084.1,0.001]
[1772619318496,3.05582099,2084.2,2084.1,0.001]
[1772619318699,4.25526444,2084.3,2083.6,0.001]
[1772619318914,1.435,2084.2,2083.6,0.001]
[1772619319220,4.49082099,2084.2,2083.6,0.001]
[1772619319411,3.05582099,2084.1,2083.6,0.001]
[1772619319932,1.19961612,2084.0,2083.6,0.001]
[1772619320335,1.436,2084.1,2083.6,0.001]
[1772619320507,2.63544345,2084.3,2083.6,3.02095162]
[1772619321892,2.63544345,2084.3,2083.6,0.001]
[1772619322096,5.5590969,2084.3,2083.6,0.001]
[1772619322320,2.92365345,2084.2,2083.6,0.001]
[1772619322717,2.92365345,2084.0,2083.3,0.001]
[1772619322916,5.78115979,2083.9,2083.3,0.001]
[1772619323125,1.439,2083.8,2083.3,0.001]
[1772619323802,4.36265345,2083.8,2083.3,0.001]
[1772619323999,4.12344228,2083.7,2083.3,0.001]
[1772619324501,1.19978883,2083.7,2083.3,0.001]
[1772619324714,1.441,2083.6,2083.3,0.001]
[1772619325898,1.19978883,2083.8,2083.3,0.001]
[1772619326121,1.442,2083.7,2083.3,0.001]
[1772619326602,1.442,2083.6,2083.3,0.001]
[1772619326841,1.443,2083.8,2083.3,0.001]
[1772619327231,4.79811183,2084.2,2083.3,3.01063192]
[1772619327534,1.443,2084.1,2083.3,3.01063192]
[1772619328228,1.19961612,2084.0,2083.3,0.001]
[1772619328422,1.19961612,2084.0,2083.3,1.20101879]
[1772619328761,1.19961612,2084.0,2083.4,3.00963192]
[1772619329057,2.64361612,2084.0,2083.4,3.00963192]
[1772619329361,1.444,2084.1,2083.4,3.00963192]
[1772619330233,1.19961612,2084.0,2083.5,1.199904]
[1772619330433,1.19961612,2084.0,2083.6,0.001]
[1772619331160,0.002,2084.3,2083.6,3.01063192]
[1772619331742,1.20144731,2084.3,2083.6,3.01063192]
[1772619331944,1.20144658,2084.3,2083.6,3.01063192]
[1772619332253,1.20144658,2084.3,2083.7,4.20942075]
[1772619332254,0.002,2084.3,2083.7,4.20942075]
[1772619332461,0.002,2084.3,2083.6,1.20084125]
[1772619332759,2.92565345,2084.3,2083.6,0.001]
[1772619333127,2.92365345,2084.1,2083.3,0.001]
[1772619333329,5.78416605,2084.0,2083.3,1.20101507]
[1772619333538,2.92365345,2084.0,2083.3,0.001]
[1772619334342,1.19967368,2083.9,2083.3,0.001]
[1772619334537,2.92365345,2083.8,2083.3,0.001]
[1772619334739,1.446,2083.7,2083.3,0.001]
[1772619335865,1.446,2083.7,2083.1,0.001]
[1772619336039,1.447,2083.7,2083.1,0.001]
[1772619336459,1.19984641,2083.6,2083.1,0.001]
[1772619337141,4.12349986,2083.6,2083.1,0.001]
[1772619337456,1.447,2083.5,2083.1,0.001]
[1772619338363,1.447,2083.4,2082.5,3.00963192]
[1772619338559,2.6469941,2083.4,2082.7,3.00963192]
[1772619338763,1.19994783,2083.5,2082.7,3.00963192]
[1772619340656,1.448,2083.5,2082.8,1.20030727]
[1772619340844,1.448,2083.5,2082.8,4.20993919]